Cogmind - Beta 12 X1 @@@ ROGUE MODE // 2022.08.04 @ 16:05:13 Player: btmk16 Result: Destroyed by D-53 Grenadier with Mini Grenade Launcher Performance ------------- Evolutions (0) 0 Regions Visited (2) 400 Robots Destroyed (24) 120 Value Destroyed (420) 420 Prototype IDs (5) 100 Alien Tech Used (0) 0 Bonus (48) 48 TOTAL SCORE: 1088 Bonus ------- Follower Combat Kills 60 Friendly Fire -12 Cogmind --------- Core Integrity 0/250 Matter 127/300 Energy 180/250 System Corruption 0% Temperature Cool (33) Movement Treading (240) Ox1 Location -10/Mines Parts ------- > --- POWER (1) -------- Ion Engine > --- PROPULSION (2) --- Improved Treads > --- UTILITY (2) ------ Large Storage Unit > --- WEAPON (2) ------- EM Shotgun > --- INVENTORY (15) --- Improved Treads Improved Treads Improved Treads Heat Sink High-capacity Storage Unit Structural Scanner Sensor Array Seismic Detector Hacking Suite Medium Laser Rocket Launcher Peak State ------------ > --- POWER ------------ Ion Engine > --- PROPULSION ------- Light Treads Improved Treads > --- UTILITY ---------- Large Storage Unit Seismic Detector > --- WEAPON ----------- Light Assault Rifle Rocket Launcher > --- INVENTORY -------- Improved Treads Improved Treads Improved Treads Heat Sink High-capacity Storage Unit Structural Scanner Sensor Array Light Armor Plating Hacking Suite EM Shotgun EM Shotgun Medium Laser Rocket Launcher Rocket Launcher [Rating: 11] Favorites ----------- Power Ion Engine Engine Ion Engine Propulsion Light Treads Treads Light Treads Utility Seismic Detector Device Seismic Detector Storage Large Storage Unit Protection Light Armor Plating Weapon Light Assault Rifle Energy Gun Medium Laser Ballistic Gun Light Assault Rifle Launcher Rocket Launcher Build | -11 -10 -10 ------- Run | Scr Mat Min Slots Evolved . | . . . Power . | . . . Propulsion . | . . . Utility . | . . . Weapon . | . . . Parts Attached 21 | 7 8 6 Power 4 | 1 3 . Engine 4 | 1 3 . Core . | . . . Reactor . | . . . Propulsion 6 | 2 3 1 Treads 6 | 2 3 1 Leg . | . . . Wheel . | . . . Hover . | . . . Flight . | . . . Utility 4 | 2 1 1 Device 1 | 1 . . Storage 2 | 1 1 . Processor . | . . . Hackware . | . . . Protection 1 | . . 1 Artifact . | . . . Weapon 7 | 2 1 4 Energy Gun 3 | 1 . 2 Energy Cannon . | . . . Ballistic Gun 2 | 1 1 . Ballistic Cannon . | . . . Launcher 2 | . . 2 Special Weapon . | . . . Impact Weapon . | . . . Slashing Weapon . | . . . Piercing Weapon . | . . . Special Melee Weapon . | . . . Unidentified Prototypes . | . . . Parts Lost 7 | . 1 6 Power . | . . . Propulsion 3 | . 1 2 Utility 1 | . . 1 Weapon 3 | . . 3 Highest Loss Streak 5 | . 1 5 To Critical Strikes . | . . . Average Slot Usage (%) 99 | . 99 98 Engine 13 | . 13 14 Treads 27 | . 27 27 Device 13 | . 14 12 Storage 14 | . 14 14 Energy Gun 13 | . 14 12 Ballistic Gun 13 | . 14 13 Naked Turns . | . . . Heaviest Build 33 | 14 29 33 Greatest Support 43 | 40 40 43 Greatest Overweight (x) 1 | . 1 . Average Overweight (x) . | . . . Largest Inventory Capacity 15 | 8 15 15 Average Capacity 14 | 7 14 15 Most Carried 15 | 8 15 15 Average Carried 12 | 3 13 14 Final Capacity 15 | 8 15 15 Final Carried 15 | 8 15 11 Class Distribution -------------------- 100% | Mutant Dominant Class ---------------- Mutant | -10/Materials Mutant | -10/Mines Resources | -11 -10 -10 ----------- Run | Scr Mat Min Matter Collected 445 | 285 128 32 Remotely . | . . . Salvage Created 788 | 226 487 75 Parts 43 | 13 29 1 Haulers Intercepted 2 | . 2 . Recyclers Shooed 2 | 1 1 . Parts Field Recycled . | . . . Retrieved Matter . | . . . Parts Self-Destructed . | . . . Prevented . | . . . Kills | -11 -10 -10 ------- Run | Scr Mat Min Combat Hostiles Destroyed 28 | . 13 15 Guns 15 | . 13 2 AOE 13 | . . 13 Classes Destroyed 9 | 3 4 2 Worker 2 | 2 . . Tunneler 4 | 4 . . Hauler 2 | . 2 . Recycler 1 | 1 . . Operator 1 | . 1 . Swarmer 6 | . 6 . Grunt 7 | . 7 . Demolisher 1 | . . 1 Assembled 14 | . . 14 Best Kill Streak 14 | 4 3 14 Combat Bots Only 14 | . 3 14 Max Kills in Single Turn 3 | 2 1 3 Gunslinging . | . . . Exploded 3 | . . 3 Melee . | . . . Uniques/NPCs Destroyed . | . . . Combat | -11 -10 -10 -------- Run | Scr Mat Min Damage Taken 1367 | . 506 861 Core 267 | . 122 145 Absorbed by Shields . | . . . Core Remaining (%) 100 | 100 . . Volleys Fired 91 | 15 53 23 Largest 2 | 2 2 2 Hottest 90 | 70 70 90 Shots Fired 179 | 30 106 43 Gun 165 | 30 106 29 Cannon . | . . . Launcher 14 | . . 14 Special . | . . . Kinetic 89 | 15 53 21 Thermal 72 | 15 53 4 Explosive 14 | . . 14 Electromagnetic 4 | . . 4 Robot Hit Streak 12 | 6 12 5 Robot Miss Streak 4 | 2 3 4 Penetration Max . | . . . Secondary Targets . | . . . Shots Hit Robots 111 | 21 70 20 Core Hits 77 | 9 32 36 Critical Kills 1 | 1 . . Critical Parts Destroyed . | . . . Critical Strikes 6 | 1 5 . Burn 5 | . 5 . Destroy 1 | 1 . . Melee Attacks . | . . . Impact . | . . . Slashing . | . . . Piercing . | . . . Sneak Attacks . | . . . Combat Hostiles . | . . . Follow-up Attacks . | . . . Damage Inflicted 2364 | 229 699 1436 Guns 1113 | 229 699 185 Cannons . | . . . Explosions 1251 | . . 1251 Melee . | . . . Ramming . | . . . Kinetic 458 | 104 266 88 Thermal 687 | 125 433 129 Explosive 1160 | . . 1160 Electromagnetic 59 | . . 59 Impact . | . . . Slashing . | . . . Piercing . | . . . Highest Corruption . | . . . Average Corruption . | . . . Corruption Purged . | . . . Corruption Blocked . | . . . Overload Shots . | . . . Overflow Damage 55 | . . 55 Projectiles . | . . . Explosions 55 | . . 55 Melee . | . . . Knockbacks . | . . . Impact . | . . . Kinetic . | . . . Secondary . | . . . Self-Inflicted Damage 29 | . . 29 Shots 1 | . . 1 Rammed . | . . . Targets Rammed . | . . . Kicked . | . . . Crushed . | . . . Highest Temperature 238 | 180 238 60 Average Temperature 61 | 73 70 17 Received Heat Transfer 244 | . 204 40 Effects 3 | . 3 . Interference 3 | . 3 . Siege Activations . | . . . Robots Corrupted . | . . . Combat Hostiles . | . . . Parts Fried . | . . . Impact Corruptions . | . . . Robots Melted . | . . . Combat Hostiles . | . . . Parts Melted 7 | 1 6 . Heat Transferred 2246 | 370 1665 211 Parts Sabotaged . | . . . Parts Stolen . | . . . Parts Stripped . | . . . Power Chain Reactions 1 | . . 1 Missiles Intercepted . | . . . Alert | -11 -10 -10 ------- Run | Scr Mat Min Peak Influence 224 | 35 224 216 Initial 28 | . 22 28 Average 83 | 12 97 65 Maximum Alert Level 1 | . 1 1 Low Security (%) 98 | 100 98 98 Level 1 1 | . 1 1 Level 2 . | . . . Level 3 . | . . . Level 4 . | . . . Level 5 . | . . . High Security . | . . . Max Security . | . . . Squads Dispatched 3 | . 3 . Investigation 2 | . 2 . Extermination . | . . . Reinforcement 1 | . 1 . Assault . | . . . Garrison . | . . . Intercept . | . . . Searches Triggered . | . . . Construction Impeded . | . . . Haulers Reinforced . | . . . Active Scanning Responses . | . . . Cargo Convoy Interrupts . | . . . Stealth | -11 -10 -10 --------- Run | Scr Mat Min Distress Signals 2 | . 2 . Communications Jammed . | . . . Distress Signals . | . . . Times Spotted 47 | . 23 24 Peak Tracking Total 11 | . 4 11 Tactical Retreats 2 | . 1 1 Traps | -11 -10 -10 ------- Run | Scr Mat Min Traps Triggered 2 | . 2 . Indirectly . | . . . Trap Hack Attempts . | . . . Triggered . | . . . Disarmed . | . . . Reprogrammed . | . . . Reused . | . . . Traps Extracted . | . . . Installed . | . . . Triggered . | . . . Machines | -11 -10 -10 ---------- Run | Scr Mat Min Machines Disabled . | . . . Max in Single Turn . | . . . Machines Sabotaged . | . . . Garrisons Compromised . | . . . Overloaded Fab Kills . | . . . Hacking | -11 -10 -10 --------- Run | Scr Mat Min Machines Accessed 8 | . 8 . Terminals 7 | . 7 . Fabricators . | . . . Repair Stations . | . . . Recycling Units 1 | . 1 . Scanalyzers . | . . . Garrison Access . | . . . Total Hacks 19 | . 19 . Successful 8 | . 8 . Failed 11 | . 11 . Catastrophic . | . . . Database Lockouts . | . . . Manual 9 | . 9 . Terminals 18 | . 18 . Fabricators . | . . . Repair Stations . | . . . Recycling Units 1 | . 1 . Scanalyzers . | . . . Garrison Access . | . . . Terminal Hacks 5 | . 5 . Prototype ID Bank 4 | . 4 . Hauler Manifests 1 | . 1 . Fabricator Hacks . | . . . Repair Station Hacks . | . . . Recycling Unit Hacks . | . . . Scanalyzer . | . . . Garrison Access Hacks . | . . . Unauthorized Hacks 3 | . 3 . Terminals 2 | . 2 . Botnet 2 | . 2 . Fabricators . | . . . Repair Stations . | . . . Recycling Units 1 | . 1 . Tunnel 1 | . 1 . Scanalyzers . | . . . Garrison Access . | . . . Data Cores Recovered . | . . . Used . | . . . Hacking Detections 6 | . 6 . Full Trace Events 1 | . 1 . Feedback Events . | . . . Feedback Blocked . | . . . Robot Schematics Acquired . | . . . Robots Built . | . . . Authchips . | . . . Time . | . . . Total Robot Build Rating . | . . . Part Schematics Acquired . | . . . Parts Built . | . . . Authchips . | . . . Time . | . . . Total Part Build Rating . | . . . Parts Repaired . | . . . Time . | . . . Parts Recycled . | . . . Recycled Matter . | . . . Retrieved Matter . | . . . Retrieved Components . | . . . Parts Scanalyzed . | . . . Part Schematics Acquired . | . . . Parts Damaged . | . . . Bothacking | -11 -10 -10 ------------ Run | Scr Mat Min Used RIF Installer . | . . . Robots Hacked . | . . . Non-combat . | . . . Combat . | . . . Robot Hacks Applied . | . . . Relay Couplers Released . | . . . Fabnet Peak Effective % . | . . . Robots Rewired . | . . . Allies Hacked . | . . . Hacks Repelled . | . . . Allies | -11 -10 -10 -------- Run | Scr Mat Min Total Allies 4 | . . 4 Largest Group 4 | . . 4 Highest-Rated Group 71 | . . 71 Highest-Rated Ally 31 | . . 31 Total Orders . | . . . Ally Attacks 32 | . . 32 Total Damage 268 | . . 268 Kills 4 | . . 4 Allies Corrupted . | . . . Allies Melted . | . . . Intel | -11 -10 -10 ------- Run | Scr Mat Min Robot Analysis Total . | . . . Derelict Logs Recovered 2 | . . 2 Drone Launches . | . . . Drone Recoveries . | . . . Exploration | -11 -10 -10 ------------- Run | Scr Mat Min Turns Passed 1970 | 188 1420 362 Spaces Moved 1024 | 81 758 185 Core 1 | 1 . . Treads 1023 | 80 758 185 Legs . | . . . Wheels . | . . . Hover . | . . . Flight . | . . . Fastest Speed 50 | 50 160 160 Average Speed 160 | 158 160 160 Slowest Speed 240 | 160 240 160 Overloaded Moves . | . . . Propulsion Burnouts . | . . . Robots Hopped . | . . . Cave-ins Triggered . | . . . Exploration Rate (%) 49 | 6 96 47 Regions Visited 2 Branch Regions 1 Pre-discovered Areas 1 | . 1 . Known Exits Taken . | . . . Unknown Exits Taken 2 | 1 1 . Scrap Searched 1 | . . 1 Spaces Dug . | . . . Terrain Destroyed 75 | . . 75 Melee . | . . . Projectile . | . . . AOE 75 | . . 75 Terrain Rammed . | . . . Walls Destroyed . | . . . Machines Disabled . | . . . Actions | -11 -10 -10 --------- Run | Scr Mat Min Total 1198 | 110 874 214 Wait 22 | . 22 . Move 1022 | 80 757 185 Hop . | . . . Pick Up 27 | 8 19 . Fast Attach 10 | 7 3 . Attach 5 | . 1 4 Detach . | . . . Swap 6 | . 4 2 Drop 15 | . 15 . Fire 91 | 15 53 23 Melee . | . . . Ram . | . . . Kick . | . . . Crush . | . . . Escape Stasis . | . . . Rewire . | . . . Trap . | . . . Miscellaneous . | . . . Route ------- -11/Scrapyard -10/Materials (discovered 5 exits: [*Mat x3] / [*Min x2]) -10/Mines History --------- Turn | Location | Event 41 | -11/Scrapyard | Discovered new exit (range 16) 189 | -11/Scrapyard | Entered Materials 304 | -10/Materials | Build established: Mutant 360 | -10/Materials | Discovered new exit (range 9) 360 | -10/Materials | Discovered new exit (range 13) 692 | -10/Materials | Discovered new exit (range 7) 972 | -10/Materials | Discovered new exit (range 14) 1403 | -10/Materials | Discovered new exit (range 16) 1609 | -10/Materials | Entered Mines 1612 | -10/Mines | Received a Mining Laser from a helpful Derelict 1677 | -10/Mines | Met a Derelict bent on vengeance 1699 | -10/Mines | Assisted by bots powering up and referring to "LRC-V3" 1825 | -10/Mines | Learned Materials emergency access door positions 1894 | -10/Mines | Assembled infested the area 1899 | -10/Mines | Assisted by a Guerilla fighting off Assembled 1915 | -10/Mines | Core integrity fell below 50% 1936 | -10/Mines | Core integrity fell below 20% 1964 | -10/Mines | Destroyed 14 combat bots 1971 | -10/Mines | Destroyed by D-53 Grenadier with Mini Grenade Launcher Last Messages --------------- 01949_ as-37146 destroyed. 01949_ Acquired 30 matter. 01949_ U-05 Engineer lays Concrete. 01953_ U-05 Engineer builds a Wall. 01954_ C-30 ARC bursts open, deploying its payload. 01954_ D-53 Grenadier unfolds itself. 01954_ U-05 Engineer destroyed. 01955_ The unstable cave ceiling collapses. 01964_ Rocket Launcher destroyed. 01965_ Lgt. Assault Rifle destroyed. 01966_ The unstable cave ceiling collapses. 01967_ U-05 Engineer lays Concrete. 01968_ The unstable cave ceiling collapses. 01968_ U-05 Engineer builds a Wall. 01969_ Lgt. Armor Plating destroyed. 01969_ Lgt. Treads destroyed. 01971_ The unstable cave ceiling collapses. 01971_ Chain reaction triggered in Lgt. Deuterium Engine. 01971_ D-53 Grenadier destroyed. 01971_ EM Shotgun destroyed. Map ----- +----------------------------------------------------+ | ??????????????????????????????????????? | | ??????????????????????????????????????? | | ??????????????????????????????????????? | | ??????????????????????????????????????? | | ?????????????????????????????? ??????? | | ????????????????????????????? ##????? | | ????####????????????????????? ##???? | | ????? #????????????????????? ##??? | | ?????# #????????????????????? #??? | | ?????# ##???????????????????? #??? | | ????## ##??????######?????#? #??? | | ???## ######## ##??## ##?? | | #### ##? #?? | | #? #?? | | ?#### %###### ## #??? | | ???## % ##???## ## #???? | | ??## #????## u #?????? | | ?## #?????## ##?????? | | ## ## ##??????####### ??????? | | # ######?????????##### % #??????? | | ##??????????##### ; * ##?????? | | ##???????????# % ##????? | | ##????????????# d #????? | | ##????????# # ### #????? | | #???????# # #????? | | ##?????# @ ##????? | | #??????# ###?????? | | #?????# #???????? | | ## #??????# #???????? | | ?# #??????# #???????? | | ## #??????? ##???????? | | #???????## #????????? | | #????????#### ### ##????????? | | #####???????????## ???##?????????? | | ?????????????????#### ??????????????? | | ????????????????????## ??????????????? | | #????????????????????# ??????????????? | | ####?????????????????# ???????????????? | | ##????????????????# ???????????????? | | ##??????????????? ???????????????? | | ##???????????????????????????????? | | ###?????????????????????????????? | | ##????????????????????????????? | | #????????????????????????????? | | # ####????????????????????????????? | | # ##???????????????????????????????? | | ##????????????????????????????????? | | ##?????????????????????????????????? | | ##??????????????????????????????????? | | #???????????????????????????????????? | +----------------------------------------------------+ Best States ------------- Heat Dissipation 25 Energy Generation 10 Energy Capacity 250 Matter Stores 300 Matter Capacity 300 Sight Range 16 Terrain Scan Density 10 Armor Coverage 150 Evasion (%) 40 Recoil Reduction 2 Item Schematics ----------------- None Robot Schematics ------------------ None Fabricated ------------ Nothing Alien Tech Used ----------------- None Achievements -------------- None Challenges ------------ None Game ------ Seed ForceLightNukerbomber Manual? 0 Play Time 00:14:46 Cumulative 448.3 hours Start 2022.08.04 @ 15:53:01 End 2022.08.04 @ 16:05:13 Sessions 1 Manual Loads 0 Difficulty Rogue Special Mode None Game No. 499 Rogue 498 Adventurer 0 Explorer 1 Win Type - Total 14 Types 9/0/2/3/0/0/0/0/0 Lore% 78 Gallery% 88 Achievement% 68 Wizard Run 0 Options --------- ASCII 0 Keyboard 1 Movement Vi Keybinds 0 Fullscreen 1 Font 18/SmallcapsGlow Map View 76x50 Tactical HUD 1 Map Filters NONE Filters NONE Steam 1 RUN: fedd0b60-4e15-4b27-ab9b-87f9a05cf260